Cogmind - Beta 10.2 @@@ ROGUE MODE // 2021.07.15 @ 23:45:55 Player: User Result: Destroyed by as-90139 with Assembled Maul Performance ------------- Evolutions (1) 500 Regions Visited (3) 600 Robots Destroyed (24) 120 Value Destroyed (549) 549 Prototype IDs (4) 80 Alien Tech Used (0) 0 Bonus (10) 10 TOTAL SCORE: 1859 Bonus ------- High Alert Combat Kills 10 Cogmind --------- Core Integrity 0/400 Matter 300/300 Energy 100/100 System Corruption 12% Temperature Cool (0) Movement Core (50) Location -9/Mines Parts ------- > --- POWER (1) -------- (None) > --- PROPULSION (3) --- (None) > --- UTILITY (3) ------ (None) > --- WEAPON (2) ------- (None) > --- INVENTORY (4) ---- Ion Engine Light Ion Engine Improved Heat Sink Compact Matter Pod (150) Peak State ------------ > --- POWER ------------ Light Nuclear Core > --- PROPULSION ------- Aluminum Leg Aluminum Leg Aluminum Leg > --- UTILITY ---------- Heat Sink Large Storage Unit ECM Suite > --- WEAPON ----------- Improved Medium Laser Heavy Assault Rifle > --- INVENTORY -------- Ion Engine Ion Engine Light Ion Engine Light Nuclear Core Improved Heat Sink Medium Laser Beam Cannon [Rating: 15] Favorites ----------- Power Ion Engine Engine Ion Engine Power Core Light Nuclear Core Propulsion Aluminum Leg Leg Aluminum Leg Utility Heat Sink Device Heat Sink Storage Large Storage Unit Weapon Assault Rifle Energy Gun Improved Medium Laser Energy Cannon Beam Cannon Ballistic Gun Assault Rifle Build | -11 -10 -9 -9 ------- Run | Scr Mat Mat Min Slots Evolved 2 | . . 2 . Power . | . . . . Propulsion 1 | . . 1 . Utility 1 | . . 1 . Weapon . | . . . . Parts Attached 24 | 5 4 12 3 Power 4 | 1 . 2 1 Engine 2 | 1 . 1 . Core 2 | . . 1 1 Reactor . | . . . . Propulsion 10 | 2 1 7 . Treads . | . . . . Leg 10 | 2 1 7 . Wheel . | . . . . Hover . | . . . . Flight . | . . . . Utility 4 | 1 2 1 . Device 2 | . 1 1 . Storage 2 | 1 1 . . Processor . | . . . . Hackware . | . . . . Protection . | . . . . Artifact . | . . . . Weapon 6 | 1 1 2 2 Energy Gun 2 | . . 1 1 Energy Cannon 1 | . . . 1 Ballistic Gun 3 | 1 1 1 . Ballistic Cannon . | . . . . Launcher . | . . . . Special Weapon . | . . . . Impact Weapon . | . . . . Slashing Weapon . | . . . . Piercing Weapon . | . . . . Special Melee Weapon . | . . . . Unidentified Prototypes 1 | . . 1 . Parts Lost 16 | . . 4 12 Power 2 | . . . 2 Propulsion 6 | . . 3 3 Utility 3 | . . . 3 Weapon 5 | . . 1 4 Highest Loss Streak 12 | . . 4 12 Average Slot Usage (%) 92 | . 94 93 83 Engine 6 | . 14 5 . Core 5 | . . 5 10 Leg 28 | . 28 30 24 Device 16 | . 10 19 19 Storage 11 | . 14 11 11 Energy Gun 3 | . . 4 8 Ballistic Gun 18 | . 26 17 8 Naked Turns 2 | . . . 2 Heaviest Build 29 | 11 26 29 29 Greatest Support 30 | 20 20 30 30 Greatest Overweight (x) 7 | . 1 2 7 Average Overweight (x) . | . . . . Largest Inventory Capacity 10 | 6 10 10 10 Average Capacity 8 | 5 6 10 9 Most Carried 9 | 3 6 9 9 Average Carried 6 | 2 4 6 8 Final Capacity 10 | 6 10 10 4 Final Carried 8 | 3 6 8 4 Class Distribution -------------------- 64% | Mutant 35% | Scavenger-Mutant Dominant Class ---------------- Mutant | -10/Materials Mutant | -9/Materials Scavenger-Mutant | -9/Mines Resources | -11 -10 -9 -9 ----------- Run | Scr Mat Mat Min Matter Collected 708 | 201 133 367 7 Remotely . | . . . . Salvage Created 732 | . 133 574 25 Parts 52 | . 10 37 5 Haulers Intercepted . | . . . . Recyclers Shooed 1 | . . 1 . Parts Field Recycled . | . . . . Retrieved Matter . | . . . . Parts Self-Destructed . | . . . . Prevented . | . . . . Kills | -11 -10 -9 -9 ------- Run | Scr Mat Mat Min Combat Hostiles Destroyed 19 | . 3 16 . Guns 18 | . 3 15 . AOE 1 | . . 1 . Classes Destroyed 6 | . 2 3 1 Builder 1 | . . . 1 Recycler 1 | . . 1 . Operator 1 | . . 1 . Watcher 2 | . 1 1 . Swarmer 8 | . . 8 . Grunt 11 | . 3 8 . Best Kill Streak 8 | . 1 8 1 Combat Bots Only 7 | . 1 7 . Max Kills in Single Turn 2 | . 1 2 1 Gunslinging 1 | . . 1 . Exploded 1 | . . 1 . Melee . | . . . . Uniques/NPCs Destroyed . | . . . . Combat | -11 -10 -9 -9 -------- Run | Scr Mat Mat Min Damage Taken 1963 | . 188 774 1001 Core 451 | . 46 140 265 Absorbed by Shields . | . . . . Core Remaining (%) 90 | 100 81 . . Volleys Fired 63 | . 17 42 4 Largest 2 | . 2 2 2 Hottest 83 | . 40 79 83 Shots Fired 126 | . 34 84 8 Gun 125 | . 34 84 7 Cannon 1 | . . . 1 Launcher . | . . . . Special . | . . . . Kinetic 110 | . 34 72 4 Thermal 16 | . . 12 4 Explosive . | . . . . Electromagnetic . | . . . . Robot Hit Streak 13 | . 13 11 2 Robot Miss Streak 5 | . 3 5 2 Penetration Max . | . . . . Secondary Targets 6 | . 1 5 . Max Gunslinging Chain 1 | . 1 1 . Shots Hit Robots 81 | . 23 54 4 Core Hits 40 | . 8 27 5 Critical Hits 2 | . 1 1 . Critical Kills . | . . . . Critical Parts Destroyed 2 | . 1 1 . Melee Attacks . | . . . . Impact . | . . . . Slashing . | . . . . Piercing . | . . . . Sneak Attacks . | . . . . Combat Hostiles . | . . . . Follow-up Attacks . | . . . . Damage Inflicted 1256 | . 252 927 77 Guns 1100 | . 252 793 55 Cannons 18 | . . . 18 Explosions 134 | . . 134 . Melee . | . . . . Ramming 4 | . . . 4 Kinetic 923 | . 252 640 31 Thermal 195 | . . 153 42 Explosive . | . . . . Electromagnetic 134 | . . 134 . Impact . | . . . . Slashing . | . . . . Piercing . | . . . . Highest Corruption 12 | . . . 12 Average Corruption 7 | . . . 7 Corruption Purged . | . . . . Overload Shots . | . . . . Overflow Damage . | . . . . Projectiles . | . . . . Explosions . | . . . . Melee . | . . . . Knockbacks . | . . . . Impact . | . . . . Kinetic . | . . . . Secondary . | . . . . Self-Inflicted Damage 21 | . . 21 . Shots 1 | . . 1 . Rammed 6 | . . . 6 Targets Rammed 6 | . . . 6 Kicked . | . . . . Crushed . | . . . . Highest Temperature 21 | . . 21 . Average Temperature 9 | . . 9 . Received Heat Transfer 451 | . 111 300 40 Siege Activations . | . . . . Robots Corrupted . | . . . . Combat Hostiles . | . . . . Parts Fried . | . . . . Impact Corruptions . | . . . . Robots Melted . | . . . . Combat Hostiles . | . . . . Parts Melted . | . . . . Heat Transferred 444 | . . 333 111 Parts Sabotaged . | . . . . Parts Stolen . | . . . . Parts Stripped . | . . . . Power Chain Reactions . | . . . . Missiles Intercepted . | . . . . Alert | -11 -10 -9 -9 ------- Run | Scr Mat Mat Min Peak Influence 474 | . 92 474 106 Initial 106 | . . 38 106 Average 162 | . 49 267 77 Maximum Alert Level 2 | . . 2 . Low Security (%) 59 | 100 100 20 100 Level 1 29 | . . 56 . Level 2 11 | . . 22 . Level 3 . | . . . . Level 4 . | . . . . Level 5 . | . . . . High Security . | . . . . Max Security . | . . . . Squads Dispatched 2 | . . 2 . Investigation 1 | . . 1 . Extermination . | . . . . Reinforcement 1 | . . 1 . Assault . | . . . . Garrison . | . . . . Intercept . | . . . . Construction Impeded . | . . . . Haulers Reinforced . | . . . . Stealth | -11 -10 -9 -9 --------- Run | Scr Mat Mat Min Distress Signals . | . . . . Communications Jammed . | . . . . Distress Signals . | . . . . Times Spotted 36 | . 5 22 9 Peak Tracking Total 8 | . 3 4 8 Tactical Retreats 1 | . . 1 . Traps | -11 -10 -9 -9 ------- Run | Scr Mat Mat Min Traps Triggered . | . . . . Indirectly . | . . . . Trap Hack Attempts . | . . . . Triggered . | . . . . Disarmed . | . . . . Reprogrammed . | . . . . Reused . | . . . . Traps Extracted . | . . . . Installed . | . . . . Triggered . | . . . . Machines | -11 -10 -9 -9 ---------- Run | Scr Mat Mat Min Machines Disabled 1 | . . 1 . Max in Single Turn 1 | . . 1 . Machines Sabotaged . | . . . . Garrisons Compromised . | . . . . Overloaded Fab Kills . | . . . . Fab Network Shutdowns . | . . . . Hacking | -11 -10 -9 -9 --------- Run | Scr Mat Mat Min Machines Accessed 4 | . 2 2 . Terminals 3 | . 1 2 . Fabricators . | . . . . Repair Stations . | . . . . Recycling Units 1 | . 1 . . Scanalyzers . | . . . . Garrison Access . | . . . . Total Hacks 13 | . 5 8 . Successful 7 | . 3 4 . Failed 6 | . 2 4 . Catastrophic 1 | . 1 . . Database Lockouts . | . . . . Manual . | . . . . Terminals 10 | . 2 8 . Fabricators . | . . . . Repair Stations . | . . . . Recycling Units 3 | . 3 . . Scanalyzers . | . . . . Garrison Access . | . . . . Terminal Hacks 5 | . 1 4 . Record 1 | . . 1 . Prototype ID Bank 1 | . . 1 . Alert Level 3 | . 1 2 . Fabricator Hacks . | . . . . Repair Station Hacks . | . . . . Recycling Unit Hacks 2 | . 2 . . Report Inventory 1 | . 1 . . Retrieve Components 1 | . 1 . . Scanalyzer . | . . . . Garrison Access Hacks . | . . . . Unauthorized Hacks . | . . . . Terminals . | . . . . Fabricators . | . . . . Repair Stations . | . . . . Recycling Units . | . . . . Scanalyzers . | . . . . Garrison Access . | . . . . Data Cores Recovered . | . . . . Used . | . . . . Hacking Detections 3 | . 1 2 . Full Trace Events 1 | . . 1 . Feedback Events . | . . . . Feedback Blocked . | . . . . Robot Schematics Acquired . | . . . . Robots Built . | . . . . Matter . | . . . . Time . | . . . . Total Robot Build Rating . | . . . . Part Schematics Acquired . | . . . . Parts Built . | . . . . Matter . | . . . . Time . | . . . . Total Part Build Rating . | . . . . Parts Repaired . | . . . . Time . | . . . . Parts Recycled . | . . . . Recycled Matter . | . . . . Retrieved Matter . | . . . . Retrieved Components 3 | . 3 . . Parts Scanalyzed . | . . . . Part Schematics Acquired . | . . . . Parts Damaged . | . . . . Bothacking | -11 -10 -9 -9 ------------ Run | Scr Mat Mat Min Used RIF Installer . | . . . . Robots Hacked . | . . . . Non-combat . | . . . . Combat . | . . . . Robot Hacks Applied . | . . . . Relay Couplers Released . | . . . . Robots Rewired . | . . . . Allies Hacked . | . . . . Hacks Repelled . | . . . . Allies | -11 -10 -9 -9 -------- Run | Scr Mat Mat Min Total Allies 2 | . . . 2 Largest Group 2 | . . . 2 Highest-Rated Group 41 | . . . 41 Highest-Rated Ally 31 | . . . 31 Total Orders . | . . . . Ally Attacks 3 | . . . 3 Total Damage 62 | . . . 62 Kills . | . . . . Allies Corrupted . | . . . . Allies Melted . | . . . . Intel | -11 -10 -9 -9 ------- Run | Scr Mat Mat Min Robot Analysis Total . | . . . . Derelict Logs Recovered . | . . . . Drone Launches . | . . . . Drone Recoveries . | . . . . Exploration | -11 -10 -9 -9 ------------- Run | Scr Mat Mat Min Turns Passed 868 | 58 215 444 151 Spaces Moved 462 | 43 114 214 91 Core 14 | 9 . . 5 Treads . | . . . . Legs 448 | 34 114 214 86 Wheels . | . . . . Hover . | . . . . Flight . | . . . . Fastest Speed 50 | 50 120 120 50 Average Speed 124 | 105 124 125 130 Slowest Speed 400 | 120 150 180 400 Overloaded Moves . | . . . . Propulsion Burnouts . | . . . . Robots Hopped . | . . . . Cave-ins Triggered 1 | . . . 1 Exploration Rate (%) 19 | 3 25 26 24 Regions Visited 3 Branch Regions 1 Pre-discovered Areas . | . . . . Known Exits Taken . | . . . . Unknown Exits Taken 3 | 1 1 1 . Scrap Searched . | . . . . Spaces Dug . | . . . . Terrain Destroyed . | . . . . Melee . | . . . . Projectile . | . . . . AOE . | . . . . Terrain Rammed . | . . . . Walls Destroyed . | . . . . Machines Disabled . | . . . . Actions | -11 -10 -9 -9 --------- Run | Scr Mat Mat Min Total 617 | 55 154 303 105 Wait 29 | . 9 20 . Move 459 | 42 113 213 91 Hop . | . . . . Pick Up 29 | 8 8 12 1 Fast Attach . | . . . . Attach 16 | 5 2 6 3 Detach . | . . . . Swap 8 | . 2 6 . Drop 7 | . 3 4 . Fire 63 | . 17 42 4 Melee . | . . . . Ram 6 | . . . 6 Kick . | . . . . Crush . | . . . . Escape Stasis . | . . . . Rewire . | . . . . Trap . | . . . . Miscellaneous . | . . . . Route ------- -11/Scrapyard -10/Materials -9/Materials -9/Mines History --------- Turn | Location | Event 5 | -11/Scrapyard | Discovered new exit (range 15) 59 | -11/Scrapyard | Entered Materials 239 | -10/Materials | Discovered new exit (range 16) 274 | -10/Materials | Entered another Materials area 274 | -9/Materials | Evolved 2 slots: Propulsion x1, Utility x1 310 | -9/Materials | Build established: Mutant 387 | -9/Materials | Destroyed 7 combat bots 602 | -9/Materials | Lost 4 parts (3n1w) 707 | -9/Materials | Discovered new exit (range 7) 718 | -9/Materials | Entered Mines 791 | -9/Mines | Assembled infested the area 840 | -9/Mines | Core integrity fell below 50% 856 | -9/Mines | Core integrity fell below 20% 867 | -9/Mines | Crushed by falling debris 867 | -9/Mines | System corruption reached 10% 869 | -9/Mines | Destroyed by as-90139 with Assembled Maul Last Messages --------------- The unstable cave ceiling collapses. ECM Suite destroyed. Lgt. Nuclear Core destroyed. System corrupted by crushing effect (+2). System corrupted by crushing effect (+5). Knocked back. Slammed into as-99442. as-24420 destroyed. Slammed into as-99442. The unstable cave ceiling collapses. Slammed into as-99442. The unstable cave ceiling collapses. Slammed into as-99442. The unstable cave ceiling collapses. Crushed by falling debris. Lrg. Storage Unit destroyed. System corrupted by crushing effect (+5). 5 Matter crushed. [Achievement: System Compromised] Slammed into as-90139. Map ----- +----------------------------------------------------+ | ?????????????????????????????????????????????????? | | ?????????????????????????????????????????????????? | | ?????????????????????????????????????????????????? | | ?????????????????????????????????????????????????? | | ?????????????????????????????????????????????????? | | ?????????????????????????????????????????????????? | | ?????????????????????????????????????????????????? | | ?????????????????????????????????????????????????? | | ?????????????????????????????????????????????????? | | ?????????????????????????????????????????????????? | | ?????????????????????????????????????????????????? | | ?????????????????????????????????????????????????? | | ?????????????????????????????????????????????????? | | ?????????????????????????????????????????????????? | | ????????????????????????????? ???????????????????? | | ????????????????????????????# #??????????????????? | | ???????????????????????????## #??????????????????? | | ???????????????????????????# ??????????????????? | | ???????????????????????????# ??????????????????? | | ??????????????????????????? #??????????????????? | | ???????????????????????????# #??????????????????? | | ???????????????????????????# ##?????????????????? | | ???????????????????????????# ##????????????????? | | ????????????????????######## ##???????????????? | | ??????# ########?#### ##* ## #???????#####???? | | ??????# #?# #!##@# " #?####### #???? | | ??????####### %### #%#a %" #??# #???? | | ????????????# %%% #### #???? | | ????????????# #### #???? | | ????????????# a #?## #???? | | ????????????## # #% ########## ##??? | | ?????????????### # ## ##?????## ##?? | | ???????????????###?### #?????## #?? | | ????????????????????### ##?????# #?? | | ????????????????????? #??????## #?? | | ???????????????????# ##???????#### ##?? | | ?????????????????? ###???????????## ##??? | | ????????????????? #??????????????### #???? | | ???????????????? ### #??????????####??# #???? | | ???????????????? ???# ?????????## #### ##??? | | ????????????????????? ?????????# ## #??? | | ???????????????????? ?????????# #??? | | ????????????????????# ##?????????# ##??? | | ????????????????????? #???????????# ########???? | | ?????????????????????? ????????????# #??????????? | | ???????????????????????????????####?# #??????????? | | ??????????????????????????????## ### #??????????? | | ???????????????????????????#### ## ##?????????? | | ???????????????????????????# #?????????? | | ???????????????????????????# !! #?????????? | +----------------------------------------------------+ Best States ------------- Heat Dissipation 38 Energy Generation 14 Energy Capacity 250 Matter Stores 300 Matter Capacity 300 Sight Range 16 Terrain Scan Density 10 ECM Strength 1 Evasion (%) 40 Item Schematics ----------------- None Robot Schematics ------------------ None Fabricated ------------ Nothing Alien Tech Used ----------------- None Achievements -------------- System Compromised Challenges ------------ None Game ------ Seed ResetSegregatorInsulator Manual? 0 Play Time 00:13:36 Cumulative 9.2 hours Start 2021.07.15 @ 23:33:29 End 2021.07.15 @ 23:45:55 Sessions 1 Manual Loads 0 Difficulty Rogue Special Mode None Game No. 18 Rogue 18 Adventurer 0 Explorer 0 Win Type - Total 0 Types 0/0/0/0/0/0/0/0/0 Lore% 7 Gallery% 13 Achievement% 14 Wizard Run 0 Options --------- ASCII 0 Keyboard 0 Movement Mouse Keybinds 0 Fullscreen 1 Font 20/Terminus Map View 66x50 Tactical HUD 0 Map Filters NONE Filters NONE Steam 1 RUN: 1264f3f8-b9a4-49db-8dc5-186343c09e8a